Cogmind - Beta 9.1 @@@ ROGUE MODE // 2019.10.31 @ 15:26:00 // Halloween2019/Abominations Player: Orfs Result: Destroyed by Lesser Abomination with Pulse Rifle Performance ------------- Evolutions (1) 500 Regions Visited (2) 400 Robots Destroyed (13) 65 Value Destroyed (710) 710 Prototype IDs (1) 20 Alien Tech Used (0) 0 Bonus (0) 0 TOTAL SCORE: 1695 Bonus ------- None Cogmind --------- Core Integrity 0/400 Matter 290/300 Energy 79/100 System Corruption 4% Temperature Cool (9) Location -9/Materials Parts ------- Power (2) Propulsion (3) Light Treads Utility (2) Weapon (2) Axe Inventory (4) Light EM Pulse Cannon Improved Assault Rifle Grenade Launcher Peak State ------------ Power Ion Engine Light Ion Engine Propulsion Light Treads Light Treads Utility Small Storage Unit Terrain Scanner Weapon Light EM Pulse Cannon Improved Assault Rifle Inventory Aluminum Leg Aluminum Leg Particle Gun Improved Assault Rifle Grenade Launcher [Rating: 11] Favorites ----------- Power Ion Engine Engine Ion Engine Propulsion Light Treads Treads Light Treads Leg Aluminum Leg Utility Small Storage Unit Device Improved Terrain Scanner Storage Small Storage Unit Weapon Assault Rifle Energy Gun Particle Gun Energy Cannon Light EM Pulse Cannon Ballistic Gun Assault Rifle Ballistic Cannon Light Cannon Launcher Grenade Launcher Slashing Weapon Axe Build | -11 -10 -9 ------- Run | Scr Mat Mat Slots Evolved 2 | . . 2 Power 1 | . . 1 Propulsion 1 | . . 1 Utility . | . . . Weapon . | . . . Parts Attached 27 | 6 11 10 Power 2 | 1 . 1 Engine 2 | 1 . 1 Core . | . . . Reactor . | . . . Propulsion 7 | 2 2 3 Treads 5 | 2 2 1 Leg 2 | . . 2 Wheel . | . . . Hover . | . . . Flight . | . . . Utility 3 | 1 1 1 Device 2 | . 1 1 Storage 1 | 1 . . Processor . | . . . Hackware . | . . . Protection . | . . . Artifact . | . . . Weapon 15 | 2 8 5 Energy Gun 1 | . . 1 Energy Cannon 2 | . 2 . Ballistic Gun 8 | 2 4 2 Ballistic Cannon 1 | . . 1 Launcher 2 | . 2 . Special Weapon . | . . . Impact Weapon . | . . . Slashing Weapon 1 | . . 1 Piercing Weapon . | . . . Special Melee Weapon . | . . . Unidentified Prototypes 1 | . . 1 Parts Lost 10 | . . 10 Power 2 | . . 2 Propulsion 3 | . . 3 Utility 2 | . . 2 Weapon 3 | . . 3 Highest Loss Streak 7 | . . 7 Average Slot Usage (%) 89 | . 98 80 Engine 15 | . 14 16 Treads 23 | . 28 19 Leg 1 | . . 3 Device 11 | . 13 8 Storage 12 | . 14 11 Energy Gun 2 | . . 6 Energy Cannon 2 | . 2 2 Ballistic Gun 17 | . 23 11 Launcher 1 | . 2 . Naked Turns . | . . . Heaviest Build 19 | 13 16 19 Greatest Support 40 | 40 40 40 Greatest Overweight (x) . | . . . Average Overweight (x) . | . . . Largest Inventory Capacity 6 | 6 6 6 Average Capacity 5 | 5 6 5 Most Carried 6 | 6 6 6 Average Carried 5 | 2 5 5 Final Capacity 6 | 6 6 4 Final Carried 6 | 6 6 3 Class Distribution -------------------- 100% | Mutant Dominant Class ---------------- Mutant | -10/Materials Mutant | -9/Materials Resources | -11 -10 -9 ----------- Run | Scr Mat Mat Matter Collected 660 | 152 376 132 Remotely . | . . . Salvage Created 558 | . 312 246 Parts 47 | . 21 26 Haulers Intercepted . | . . . Recyclers Shooed . | . . . Parts Field Recycled . | . . . Retrieved Matter . | . . . Parts Self-Destructed . | . . . Prevented . | . . . Kills | -11 -10 -9 ------- Run | Scr Mat Mat Combat Hostiles Destroyed 12 | . 8 4 Melee 2 | . . 2 Guns 7 | . 5 2 Cannons 1 | . 1 . AOE 2 | . 2 . Classes Destroyed 3 | . 2 1 Watcher 1 | . . 1 Grunt 1 | . 1 . Abomination 11 | . 7 4 Best Kill Streak 4 | . 4 2 Combat Bots Only 4 | . 4 2 Max Kills in Single Turn 1 | . 1 1 Gunslinging . | . . . Exploded 1 | . 1 . Melee 1 | . . 1 Uniques/NPCs Destroyed . | . . . Combat | -11 -10 -9 -------- Run | Scr Mat Mat Damage Taken 2710 | . 631 2079 Core 477 | . 70 407 Absorbed by Shields . | . . . Core Remaining (%) 86 | 100 72 . Volleys Fired 48 | . 27 21 Largest 2 | . 2 2 Hottest 88 | . 76 88 Shots Fired 87 | . 46 41 Gun 70 | . 30 40 Cannon 11 | . 10 1 Launcher 6 | . 6 . Special . | . . . Kinetic 54 | . 30 24 Thermal 16 | . . 16 Explosive 6 | . 6 . Electromagnetic 11 | . 10 1 Robot Hit Streak 16 | . 10 16 Robot Miss Streak 1 | . 1 1 Penetration Max . | . . . Secondary Targets . | . . . Shots Hit Robots 73 | . 29 44 Core Hits 35 | . 27 8 Critical Hits . | . . . Critical Kills . | . . . Critical Parts Destroyed . | . . . Melee Attacks 8 | . . 8 Impact . | . . . Slashing 8 | . . 8 Piercing . | . . . Sneak Attacks . | . . . Combat Hostiles . | . . . Follow-up Attacks . | . . . Damage Inflicted 1598 | . 711 887 Guns 821 | . 268 553 Cannons 90 | . 52 38 Explosions 391 | . 391 . Melee 296 | . . 296 Ramming . | . . . Kinetic 578 | . 268 310 Thermal 309 | . 66 243 Explosive 325 | . 325 . Electromagnetic 90 | . 52 38 Impact . | . . . Slashing 296 | . . 296 Piercing . | . . . Highest Corruption 4 | . 4 4 Average Corruption 2 | . 1 3 Corruption Purged . | . . . Effects 10 | . 4 6 Matter Fused 1 | . 1 . Heat Flow Errors 1 | . . 1 Energy Discharges 1 | . . 1 Data Loss (minor) 1 | . . 1 Targeting Errors 6 | . 3 3 Overload Shots . | . . . Overflow Damage 68 | . 31 37 Projectiles . | . . . Explosions 31 | . 31 . Melee 37 | . . 37 Knockbacks . | . . . Impact . | . . . Kinetic . | . . . Secondary . | . . . Self-Inflicted Damage 31 | . 31 . Shots 1 | . 1 . Rammed . | . . . Targets Rammed . | . . . Kicked . | . . . Crushed . | . . . Highest Temperature 200 | . 200 200 Average Temperature 81 | . 68 88 Received Heat Transfer 588 | . 309 279 Siege Activations . | . . . Robots Corrupted . | . . . Combat Hostiles . | . . . Parts Fried . | . . . Impact Corruptions . | . . . Robots Melted . | . . . Combat Hostiles . | . . . Parts Melted . | . . . Heat Transferred 179 | . 62 117 Parts Sabotaged . | . . . Parts Stolen . | . . . Parts Stripped . | . . . Power Chain Reactions 1 | . 1 . Missiles Intercepted . | . . . Alert | -11 -10 -9 ------- Run | Scr Mat Mat Peak Influence 24 | . 24 16 Average Influence 4 | . 5 5 Maximum Alert Level . | . . . Low Security (%) 100 | . . . Level 1 . | . . . Level 2 . | . . . Level 3 . | . . . Level 4 . | . . . Level 5 . | . . . High Security . | . . . Max Security . | . . . Squads Dispatched 8 | . 4 4 Investigation 1 | . . 1 Extermination . | . . . Reinforcement 2 | . 2 . Assault 5 | . 2 3 Garrison . | . . . Intercept . | . . . Construction Impeded . | . . . Haulers Reinforced . | . . . Stealth | -11 -10 -9 --------- Run | Scr Mat Mat Distress Signals 9 | . 3 6 Communications Jammed . | . . . Distress Signals . | . . . Times Spotted 23 | . 16 7 Peak Tracking Total 6 | . 4 6 Tactical Retreats . | . . . Traps | -11 -10 -9 ------- Run | Scr Mat Mat Traps Triggered . | . . . Indirectly . | . . . Trap Hack Attempts . | . . . Triggered . | . . . Disarmed . | . . . Reprogrammed . | . . . Reused . | . . . Traps Extracted . | . . . Installed . | . . . Triggered . | . . . Machines | -11 -10 -9 ---------- Run | Scr Mat Mat Machines Disabled . | . . . Max in Single Turn . | . . . Machines Sabotaged . | . . . Garrisons Compromised . | . . . Overloaded Fab Kills . | . . . Fab Network Shutdowns . | . . . Hacking | -11 -10 -9 --------- Run | Scr Mat Mat Machines Accessed 3 | . 2 1 Terminals 3 | . 2 1 Fabricators . | . . . Repair Stations . | . . . Recycling Units . | . . . Scanalyzers . | . . . Garrison Access . | . . . Total Hacks 8 | . 6 2 Successful 7 | . 5 2 Failed 1 | . 1 . Catastrophic . | . . . Database Lockouts . | . . . Manual . | . . . Terminals 8 | . 6 2 Fabricators . | . . . Repair Stations . | . . . Recycling Units . | . . . Scanalyzers . | . . . Garrison Access . | . . . Terminal Hacks 7 | . 5 2 Emergency Access Points 1 | . 1 . Locate Traps 3 | . 2 1 Hauler Manifests 1 | . 1 . Zone Layout 2 | . 1 1 Fabricator Hacks . | . . . Repair Station Hacks . | . . . Recycling Unit Hacks . | . . . Scanalyzer . | . . . Garrison Access Hacks . | . . . Unauthorized Hacks . | . . . Terminals . | . . . Fabricators . | . . . Repair Stations . | . . . Recycling Units . | . . . Scanalyzers . | . . . Garrison Access . | . . . Data Cores Recovered . | . . . Used . | . . . Hacking Detections 1 | . . 1 Full Trace Events . | . . . Feedback Events . | . . . Feedback Blocked . | . . . Robot Schematics Acquired . | . . . Robots Built . | . . . Matter . | . . . Time . | . . . Total Robot Build Rating . | . . . Part Schematics Acquired . | . . . Parts Built . | . . . Matter . | . . . Time . | . . . Total Part Build Rating . | . . . Parts Repaired . | . . . Time . | . . . Parts Recycled . | . . . Recycled Matter . | . . . Retrieved Matter . | . . . Retrieved Components . | . . . Parts Scanalyzed . | . . . Part Schematics Acquired . | . . . Parts Damaged . | . . . Bothacking | -11 -10 -9 ------------ Run | Scr Mat Mat Used RIF Installer . | . . . Robots Hacked . | . . . Non-combat . | . . . Combat . | . . . Robot Hacks Applied . | . . . Relay Couplers Released . | . . . Robots Rewired . | . . . Allies Hacked . | . . . Hacks Repelled . | . . . Allies | -11 -10 -9 -------- Run | Scr Mat Mat Total Allies . | . . . Largest Group . | . . . Highest-Rated Group . | . . . Highest-Rated Ally . | . . . Total Orders . | . . . Ally Attacks . | . . . Total Damage . | . . . Kills . | . . . Allies Corrupted . | . . . Allies Melted . | . . . Intel | -11 -10 -9 ------- Run | Scr Mat Mat Robot Analysis Total . | . . . Derelict Logs Recovered . | . . . Drone Launches . | . . . Drone Recoveries . | . . . Exploration | -11 -10 -9 ------------- Run | Scr Mat Mat Turns Passed 897 | 81 424 392 Spaces Moved 429 | 44 196 189 Core 4 | 3 . 1 Treads 388 | 41 196 151 Legs 37 | . . 37 Wheels . | . . . Hover . | . . . Flight . | . . . Fastest Speed 50 | 50 160 50 Average Speed 155 | 152 160 151 Slowest Speed 160 | 160 160 160 Overloaded Moves . | . . . Propulsion Burnouts . | . . . Robots Hopped . | . . . Cave-ins Triggered . | . . . Exploration Rate (%) 22 | 5 42 21 Regions Visited 2 Branch Regions . Pre-discovered Areas . | . . . Known Exits Taken . | . . . Unknown Exits Taken 2 | 1 1 . Scrap Searched . | . . . Spaces Dug . | . . . Terrain Destroyed 40 | . 40 . Melee . | . . . Projectile . | . . . AOE 40 | . 40 . Actions | -11 -10 -9 --------- Run | Scr Mat Mat Total 532 | 55 242 235 Wait . | . . . Move 427 | 43 195 189 Hop . | . . . Pick Up 15 | 6 5 4 Fast Attach 13 | 6 6 1 Attach 8 | . 1 7 Detach 1 | . . 1 Swap 6 | . 4 2 Drop 6 | . 4 2 Fire 48 | . 27 21 Melee 8 | . . 8 Ram . | . . . Kick . | . . . Crush . | . . . Escape Stasis . | . . . Rewire . | . . . Trap . | . . . Miscellaneous . | . . . Route ------- -11/Scrapyard -10/Materials -9/Materials History --------- Turn | Location | Event 2 | -11/Scrapyard | Met Revision 17 29 | -11/Scrapyard | Discovered new exit (range 15) 82 | -11/Scrapyard | Entered Materials 307 | -10/Materials | Build established: Mutant 402 | -10/Materials | Discovered new exit (range 16) 506 | -10/Materials | Entered another Materials area 506 | -9/Materials | Evolved 2 slots: Power x1, Propulsion x1 875 | -9/Materials | Core integrity fell below 50% 886 | -9/Materials | Core integrity fell below 20% 898 | -9/Materials | Destroyed by Lesser Abomination with Pulse Rifle Last Messages --------------- 00875_ Imp. Assault Rifle destroyed. 00877_ Aluminum Leg destroyed. 00878_ Critical hit. 00878_ Lgt. Treads destroyed. 00880_ Lesser Abomination destroyed. 00881_ Lesser Abomination spits out Ion Engine. 00881_ Lesser Abomination absorbs Lgt. Ion Engine. 00883_ Lesser Abomination destroyed. 00885_ Lesser Abomination absorbs Lgt. Ion Engine. 00885_ Acquired 5 matter. 00886_ Purification Channel disabled. 00887_ Lesser Abomination spits out Lgt. Ion Engine. 00887_ Lesser Abomination absorbs Ion Engine. 00889_ Destroyed Pulse Rifle. 00892_ Lesser Abomination absorbs Axe. 00893_ Lgt. Cannon destroyed. 00894_ Aluminum Leg destroyed. 00895_ Destroyed Heat Sink. 00896_ Lesser Abomination absorbs Imp. Propulsion Shielding. 00897_ Sml. Storage Unit destroyed. Map ----- +----------------------------------------------------+ | | | | | | | | | | | | | | | | | ??????????????????????????????????????? | | ??????????????????????????????????????? | | ??????????????????????????????????????? | | ??????????????????????????????????????? | | ??????????????????????????????????????? | | ??????????????????????????????????????? | | ??????????????????????????????????????? | | ??????????????????????????????????????? | | ??????????????????????????????????????? | | ??????????????????????????????????????? | | ??????????????????????????????????????? | | ??????????????????????????????????????? | | ??????????????????????????????????????? | | ??????????????????????????????????????? | | ??????????????????????????????????????? | | ??????#???????????????????????????????? | | ??????+ ????########??????????????????? | | ??????# ????#!@=!! #??????????????????? | | ??????# ???#%!A ! #??????????????????? | | ??????# ??#*==!! #??????????????????? | | ??????# ###=!#####??????????????????? | | ??????# !#??????????????????????? | | ??????# #??????????????????????? | | ??????# " %#??????????????????????? | | ??????# "" #??????????????????????? | | ??????# "" % #??????????????????????? | | ??????# """ +??????????????????????? | | ??????# ""A #??????????????????????? | | ??????# """ #??????????????????????? | | ??????# """ %#??????????????????????? | | ??????# """ #??????????????????????? | | ??????# " #??????????????????????? | | ??????# +??????????????????????? | | ??????# #??????????????????????? | | ??????# #####??????????????????????? | | ??????# #???????? ????????????????? | | ??????+ #?#?????#"#"???????????????? | | ??????# #?????? " ???????????????? | | ?????## #######"""" ??????????????? | | ?????# %% ??????????????? | | ?????# """"??????????????? | | ?????# % % " ??????????????? | +----------------------------------------------------+ Best States ------------- Heat Dissipation 28 Energy Generation 15 Energy Capacity 275 Matter Stores 300 Matter Capacity 300 Sight Range 16 Terrain Scan Range 16 Terrain Scan Density 10 Evasion (%) 40 Recoil Reduction 2 Item Schematics ----------------- None Robot Schematics ------------------ None Fabricated ------------ Nothing Alien Tech Used ----------------- None Achievements -------------- None Challenges ------------ None Game ------ Seed AdvancedPlasmaRedistributor Manual? 0 Play Time 00:14:49 Cumulative 4.3 hours Start 2019.10.31 @ 15:11:52 End 2019.10.31 @ 15:26:00 Sessions 1 Manual Loads 0 Difficulty Rogue Special Mode Halloween2019/Abominations Game No. 14 Rogue 14 Adventurer 0 Explorer 0 Win Type - Total 0 Types 0/0/0/0/0/0/0 Lore% 6 Gallery% 18 Achievement% 10 Wizard Run 0 Options --------- ASCII 0 Keyboard 0 Movement Numpad Keybinds 0 Fullscreen 0 Font 16/SmallcapsGlow Map View 76x50 Tactical HUD 1 Map Filters NONE Filters NONE Steam 1 RUN: 95692eb7-df33-407f-8614-6a5c12690d82